[Event "Live Chess"]
[Site "Chess.com"]
[Date "2023.05.21"]
[Round "-"]
[White "JohanKjeldahl"]
[Black "Doge_Dandolo"]
[Result "0-1"]
[WhiteElo "1874"]
[BlackElo "1892"]
[TimeControl "300"]
[EndTime "0:18:52 PDT"]
[Termination "Doge_Dandolo won by resignation"]

1. c4 {[%clk 0:04:56.7]} 1... Nf6 {[%clk 0:04:58.1]} 2. Nc3 {[%clk 0:04:55.5]}
2... c5 {[%clk 0:04:57]} 3. Nf3 {[%clk 0:04:53.2]} 3... e6 {[%clk 0:04:55.7]} 4.
d4 {[%clk 0:04:50.7]} 4... cxd4 {[%clk 0:04:54.1]} 5. Nxd4 {[%clk 0:04:49.7]}
5... a6 {[%clk 0:04:52.8]} 6. e4 {[%clk 0:04:47.6]} 6... d6 {[%clk 0:04:51.2]}
7. Be3 {[%clk 0:04:46.3]} 7... b6 {[%clk 0:04:48.1]} 8. f3 {[%clk 0:04:45.2]}
8... Bb7 {[%clk 0:04:47.2]} 9. Qd2 {[%clk 0:04:43.9]} 9... Nbd7 {[%clk
0:04:46.4]} 10. Be2 {[%clk 0:04:41.2]} 10... Qc7 {[%clk 0:04:44.8]} 11. O-O
{[%clk 0:04:37.5]} 11... Be7 {[%clk 0:04:43.7]} 12. Rac1 {[%clk 0:04:34.4]}
12... Rc8 {[%clk 0:04:41.9]} 13. Kh1 {[%clk 0:04:29.6]} 13... O-O {[%clk
0:04:39.9]} 14. b3 {[%clk 0:04:20]} 14... Rfe8 {[%clk 0:04:36.3]} 15. Nc2 {[%clk
0:04:17.2]} 15... Qb8 {[%clk 0:04:32.8]} 16. Bd3 {[%clk 0:04:08.3]} 16... Rcd8
{[%clk 0:04:30.4]} 17. Qf2 {[%clk 0:04:06.7]} 17... Ba8 {[%clk 0:04:27.4]} 18.
Na4 {[%clk 0:03:59]} 18... Nc5 {[%clk 0:04:24.9]} 19. Nxc5 {[%clk 0:03:54.5]}
19... dxc5 {[%clk 0:04:23.8]} 20. Be2 {[%clk 0:03:45.2]} 20... Bd6 {[%clk
0:04:22.4]} 21. g3 {[%clk 0:03:35.6]} 21... Re7 {[%clk 0:04:14.6]} 22. Bg5
{[%clk 0:03:33.3]} 22... Red7 {[%clk 0:04:11]} 23. Bxf6 {[%clk 0:03:30.3]} 23...
gxf6 {[%clk 0:04:08.7]} 24. Rfd1 {[%clk 0:03:23.8]} 24... Bf8 {[%clk 0:04:07.2]}
25. Rxd7 {[%clk 0:03:21.6]} 25... Rxd7 {[%clk 0:04:06]} 26. Rd1 {[%clk
0:03:18.6]} 26... Qd8 {[%clk 0:04:04.8]} 27. Rxd7 {[%clk 0:03:15.2]} 27... Qxd7
{[%clk 0:04:03.4]} 28. Qe3 {[%clk 0:03:11.7]} 28... f5 {[%clk 0:03:54.2]} 29.
exf5 {[%clk 0:03:01.4]} 29... Bg7 {[%clk 0:03:51.7]} 30. fxe6 {[%clk 0:02:50.4]}
30... fxe6 {[%clk 0:03:50.2]} 31. Qf4 {[%clk 0:02:38.5]} 31... Bb7 {[%clk
0:03:41.8]} 32. Kg2 {[%clk 0:02:33.7]} 32... Bc3 {[%clk 0:03:28]} 33. Qg5+
{[%clk 0:02:27.7]} 33... Bg7 {[%clk 0:03:25.7]} 34. h4 {[%clk 0:02:20.6]} 34...
h6 {[%clk 0:03:19.9]} 35. Qf4 {[%clk 0:02:15.9]} 35... Qd8 {[%clk 0:03:08.9]}
36. h5 {[%clk 0:02:12.8]} 36... Qe8 {[%clk 0:03:01.4]} 37. Qg4 {[%clk
0:02:03.6]} 37... Qd7 {[%clk 0:02:55.2]} 38. Qf4 {[%clk 0:01:59.4]} 38... Qe8
{[%clk 0:02:52.8]} 39. g4 {[%clk 0:01:55.8]} 39... Qd7 {[%clk 0:02:49.6]} 40.
Ne1 {[%clk 0:01:49.9]} 40... Qd8 {[%clk 0:02:39.3]} 41. Nd3 {[%clk 0:01:48.3]}
41... Qd4 {[%clk 0:02:23.5]} 42. Qxd4 {[%clk 0:01:46.1]} 42... Bxd4 {[%clk
0:02:21.8]} 43. Kg3 {[%clk 0:01:45.3]} 43... Kf7 {[%clk 0:02:20.9]} 44. f4
{[%clk 0:01:40.7]} 44... Kf6 {[%clk 0:02:16]} 45. Kh4 {[%clk 0:01:34.1]} 45...
Be3 {[%clk 0:02:13.3]} 46. Kg3 {[%clk 0:01:29]} 46... Be4 {[%clk 0:02:09.4]} 47.
Ne5 {[%clk 0:01:21.9]} 47... Bb1 {[%clk 0:02:05.7]} 48. Nd7+ {[%clk 0:01:20.4]}
48... Ke7 {[%clk 0:02:03.8]} 49. Nxb6 {[%clk 0:01:18.6]} 49... Bxa2 {[%clk
0:02:02.4]} 50. Bd1 {[%clk 0:01:17.5]} 50... Bb1 {[%clk 0:01:57.8]} 51. Na4
{[%clk 0:01:14.5]} 51... Be4 {[%clk 0:01:52.4]} 52. Nc3 {[%clk 0:01:12.4]} 52...
Bc6 {[%clk 0:01:50.3]} 53. Bf3 {[%clk 0:01:09.9]} 53... Bd7 {[%clk 0:01:47.8]}
54. Bb7 {[%clk 0:01:07.4]} 54... Bd4 {[%clk 0:01:44.5]} 55. Ne4 {[%clk 0:01:03]}
55... a5 {[%clk 0:01:40.9]} 56. g5 {[%clk 0:00:57.7]} 56... hxg5 {[%clk
0:01:38.6]} 57. fxg5 {[%clk 0:00:56.7]} 57... e5 {[%clk 0:01:37.1]} 58. h6
{[%clk 0:00:52.8]} 58... Bf5 {[%clk 0:01:35.6]} 59. Kh4 {[%clk 0:00:43.2]} 59...
Kf7 {[%clk 0:01:31.3]} 60. Kh5 {[%clk 0:00:41.1]} 60... Bg6+ {[%clk 0:01:29.5]}
61. Kg4 {[%clk 0:00:39.9]} 61... Be3 {[%clk 0:01:26.1]} 62. Bd5+ {[%clk
0:00:37.9]} 62... Ke7 {[%clk 0:01:23.1]} 63. Nf6 {[%clk 0:00:35.5]} 63... Bd2
{[%clk 0:01:11.1]} 64. h7 {[%clk 0:00:34.1]} 64... Bxh7 {[%clk 0:01:08.9]} 65.
Nxh7 {[%clk 0:00:32.6]} 65... e4 {[%clk 0:01:06.2]} 66. g6 {[%clk 0:00:29.2]}
66... e3 {[%clk 0:01:03.4]} 67. g7 {[%clk 0:00:27.7]} 67... e2 {[%clk
0:01:02.8]} 68. g8=Q {[%clk 0:00:22.2]} 68... e1=Q {[%clk 0:01:01.4]} 69. Qg5+
{[%clk 0:00:18.9]} 69... Bxg5 {[%clk 0:00:59.4]} 0-1

[Event "Live Chess"]
[Site "Chess.com"]
[Date "2023.05.21"]
[Round "-"]
[White "mattihelenius2"]
[Black "f4nomore"]
[Result "0-1"]
[WhiteElo "489"]
[BlackElo "1416"]
[TimeControl "300"]
[EndTime "0:19:54 PDT"]
[Termination "f4nomore won by resignation"]

1. d4 {[%clk 0:04:58.4]} 1... g6 {[%clk 0:04:59.9]} 2. e4 {[%clk 0:04:55.6]}
2... Bg7 {[%clk 0:04:58.5]} 3. e5 {[%clk 0:04:51.5]} 3... d6 {[%clk 0:04:57.1]}
4. Bb5+ {[%clk 0:04:45.4]} 4... c6 {[%clk 0:04:54.5]} 5. Bd3 {[%clk 0:04:40.8]}
5... dxe5 {[%clk 0:04:50.5]} 6. Nf3 {[%clk 0:04:36.4]} 6... exd4 {[%clk
0:04:46.9]} 7. Nxd4 {[%clk 0:04:35.4]} 7... Qxd4 {[%clk 0:04:42.6]} 8. Nc3
{[%clk 0:04:32.9]} 8... Nf6 {[%clk 0:04:28.1]} 9. Be3 {[%clk 0:04:31.2]} 9...
Qe5 {[%clk 0:04:20.8]} 10. Qf3 {[%clk 0:04:22.8]} 10... Bg4 {[%clk 0:04:16.4]}
11. Qf4 {[%clk 0:04:14.8]} 11... Qxf4 {[%clk 0:04:02.1]} 12. Bxf4 {[%clk
0:04:12.7]} 12... O-O {[%clk 0:04:00.7]} 13. Bxb8 {[%clk 0:04:09.5]} 13... Raxb8
{[%clk 0:03:58.8]} 14. Ne4 {[%clk 0:04:07.3]} 14... Nxe4 {[%clk 0:03:50.7]} 15.
Bxe4 {[%clk 0:04:07.2]} 15... Bxb2 {[%clk 0:03:47.2]} 16. Rd1 {[%clk 0:04:04.7]}
16... Bxd1 {[%clk 0:03:44.6]} 17. Kxd1 {[%clk 0:03:37.7]} 17... Rbd8+ {[%clk
0:03:41.3]} 18. Ke2 {[%clk 0:03:35.1]} 18... e6 {[%clk 0:03:37.9]} 19. Rd1
{[%clk 0:03:33.6]} 19... Rxd1 {[%clk 0:03:35.5]} 20. Kxd1 {[%clk 0:03:33.5]}
20... Rd8+ {[%clk 0:03:33.3]} 21. Ke2 {[%clk 0:03:31.8]} 21... Bc3 {[%clk
0:03:30.5]} 22. f3 {[%clk 0:03:27.8]} 22... Rd2+ {[%clk 0:03:20.8]} 23. Ke3
{[%clk 0:03:25.8]} 23... Rxg2 {[%clk 0:03:17]} 24. h4 {[%clk 0:03:23.2]} 24...
Rh2 {[%clk 0:03:11.7]} 25. a4 {[%clk 0:03:15.7]} 25... Rxh4 {[%clk 0:03:09.4]}
26. Kd3 {[%clk 0:03:14.7]} 26... Bg7 {[%clk 0:03:05]} 27. c4 {[%clk 0:03:11.1]}
27... f5 {[%clk 0:02:55.8]} 28. Bxc6 {[%clk 0:03:06]} 28... bxc6 {[%clk
0:02:53.2]} 29. c5 {[%clk 0:03:04.4]} 29... e5 {[%clk 0:02:50.5]} 30. Ke3 {[%clk
0:03:02.2]} 30... Rxa4 {[%clk 0:02:45.1]} 31. f4 {[%clk 0:03:00]} 31... exf4+
{[%clk 0:02:42.7]} 32. Kf3 {[%clk 0:02:58.8]} 32... Bd4 {[%clk 0:02:36.6]} 33.
Kxf4 {[%clk 0:02:57.1]} 33... Bxc5+ {[%clk 0:02:35.2]} 34. Ke5 {[%clk
0:02:56.1]} 34... Bb6 {[%clk 0:02:32.6]} 35. Kd6 {[%clk 0:02:55.1]} 35... c5
{[%clk 0:02:31]} 36. Kc6 {[%clk 0:02:53.8]} 36... c4 {[%clk 0:02:29.8]} 37. Kb7
{[%clk 0:02:52.6]} 37... c3 {[%clk 0:02:27.4]} 38. Kc6 {[%clk 0:02:51.5]} 38...
c2 {[%clk 0:02:25.8]} 0-1

[Event "Live Chess"]
[Site "Chess.com"]
[Date "2023.05.21"]
[Round "-"]
[White "friarnator"]
[Black "martynstanley"]
[Result "1-0"]
[WhiteElo "1999"]
[BlackElo "986"]
[TimeControl "300"]
[EndTime "0:19:56 PDT"]
[Termination "friarnator won by checkmate"]

1. e4 {[%clk 0:04:59.1]} 1... e6 {[%clk 0:04:59]} 2. Nf3 {[%clk 0:04:58.5]} 2...
d5 {[%clk 0:04:58.3]} 3. Nc3 {[%clk 0:04:58]} 3... c5 {[%clk 0:04:57.4]} 4. d4
{[%clk 0:04:56.1]} 4... Nc6 {[%clk 0:04:56.6]} 5. exd5 {[%clk 0:04:54.9]} 5...
exd5 {[%clk 0:04:55.1]} 6. Bb5 {[%clk 0:04:54.5]} 6... a6 {[%clk 0:04:53.9]} 7.
Bxc6+ {[%clk 0:04:53.4]} 7... bxc6 {[%clk 0:04:53.4]} 8. O-O {[%clk 0:04:53.3]}
8... Bb7 {[%clk 0:04:52.2]} 9. Re1+ {[%clk 0:04:51.1]} 9... Ne7 {[%clk
0:04:51.3]} 10. dxc5 {[%clk 0:04:49.2]} 10... Qd7 {[%clk 0:04:49.1]} 11. Ne5
{[%clk 0:04:47]} 11... Qc7 {[%clk 0:04:47.4]} 12. Bf4 {[%clk 0:04:45.5]} 12...
Qa5 {[%clk 0:04:41.8]} 13. Qd4 {[%clk 0:04:38.9]} 13... O-O-O {[%clk 0:04:39.6]}
14. b4 {[%clk 0:04:38]} 14... Qc7 {[%clk 0:04:33.2]} 15. Nxf7 {[%clk 0:04:36.6]}
15... Qxf4 {[%clk 0:04:31.8]} 16. Qxf4 {[%clk 0:04:35.3]} 16... d4 {[%clk
0:04:27.9]} 17. Na4 {[%clk 0:04:28.6]} 17... g5 {[%clk 0:04:23.7]} 18. Nb6#
{[%clk 0:04:27.3]} 1-0

[Event "Live Chess"]
[Site "Chess.com"]
[Date "2023.05.21"]
[Round "-"]
[White "Tushinskiy"]
[Black "YichenLFC"]
[Result "1-0"]
[WhiteElo "2176"]
[BlackElo "816"]
[TimeControl "300"]
[EndTime "0:19:59 PDT"]
[Termination "Tushinskiy won on time"]

1. d4 {[%clk 0:04:58.6]} 1... e6 {[%clk 0:04:56.5]} 2. c3 {[%clk 0:04:58.5]}
2... Nc6 {[%clk 0:04:53.2]} 3. Nf3 {[%clk 0:04:58.4]} 3... d5 {[%clk 0:04:51.2]}
4. Bf4 {[%clk 0:04:57.5]} 4... h6 {[%clk 0:04:47.8]} 5. Nbd2 {[%clk 0:04:56.1]}
5... Nf6 {[%clk 0:04:44.7]} 6. Bg3 {[%clk 0:04:55.2]} 6... Bd6 {[%clk 0:04:36]}
7. e3 {[%clk 0:04:54]} 7... Bxg3 {[%clk 0:04:18]} 8. hxg3 {[%clk 0:04:53.9]}
8... e5 {[%clk 0:04:14.5]} 9. Nxe5 {[%clk 0:04:51.1]} 9... Nxe5 {[%clk
0:04:11.9]} 10. dxe5 {[%clk 0:04:51]} 10... Ng4 {[%clk 0:04:07.6]} 11. Nf3
{[%clk 0:04:48.5]} 11... Be6 {[%clk 0:03:45.9]} 12. Qd4 {[%clk 0:04:39.8]} 12...
O-O {[%clk 0:03:34.5]} 13. Rh4 {[%clk 0:04:37.2]} 13... f5 {[%clk 0:03:18.1]}
14. exf6 {[%clk 0:04:33.6]} 14... Qxf6 {[%clk 0:03:07.6]} 15. Rxg4 {[%clk
0:04:30.9]} 15... Bxg4 {[%clk 0:03:03]} 16. Qxg4 {[%clk 0:04:30.8]} 16... Qf5
{[%clk 0:02:53.3]} 17. Qxf5 {[%clk 0:04:28.8]} 17... Rxf5 {[%clk 0:02:50.7]} 18.
Bd3 {[%clk 0:04:27.8]} 18... Rf6 {[%clk 0:02:42.8]} 19. Rd1 {[%clk 0:04:25.3]}
19... Re8 {[%clk 0:02:35.5]} 20. Bc2 {[%clk 0:04:22.5]} 20... c6 {[%clk
0:02:31]} 21. Bb3 {[%clk 0:04:20.9]} 21... a6 {[%clk 0:02:27.9]} 22. c4 {[%clk
0:04:20.1]} 22... dxc4 {[%clk 0:02:20.8]} 23. Bxc4+ {[%clk 0:04:19.3]} 23... Kh8
{[%clk 0:02:16.9]} 24. Rd7 {[%clk 0:04:18.1]} 24... b5 {[%clk 0:02:06.9]} 25.
Bb3 {[%clk 0:04:14.5]} 25... c5 {[%clk 0:02:03.9]} 26. Bc2 {[%clk 0:04:08.5]}
26... c4 {[%clk 0:02:01.2]} 27. Nh4 {[%clk 0:04:06.9]} 27... Kg8 {[%clk
0:01:43.1]} 28. Nf5 {[%clk 0:04:00.9]} 28... Rf7 {[%clk 0:01:21.5]} 29. Rxf7
{[%clk 0:03:56.2]} 29... Kxf7 {[%clk 0:01:19.1]} 30. Nd6+ {[%clk 0:03:55.4]}
30... Ke7 {[%clk 0:01:14.9]} 31. Nxe8 {[%clk 0:03:55.3]} 31... Kxe8 {[%clk
0:01:12.6]} 32. Be4 {[%clk 0:03:55.2]} 32... Kd7 {[%clk 0:01:10.5]} 33. Bb7
{[%clk 0:03:54.1]} 33... a5 {[%clk 0:01:08.6]} 34. Kd2 {[%clk 0:03:53.2]} 34...
Kc7 {[%clk 0:01:05.9]} 35. Ba8 {[%clk 0:03:49.3]} 35... b4 {[%clk 0:01:00.1]}
36. Bd5 {[%clk 0:03:46.7]} 36... c3+ {[%clk 0:00:55.8]} 37. bxc3 {[%clk
0:03:46.6]} 37... Kd6 {[%clk 0:00:50.5]} 38. Bb3 {[%clk 0:03:44.7]} 38... bxc3+
{[%clk 0:00:45.9]} 39. Kxc3 {[%clk 0:03:44.6]} 39... Kc5 {[%clk 0:00:43.8]} 40.
f4 {[%clk 0:03:42.3]} 40... g6 {[%clk 0:00:40.5]} 41. e4 {[%clk 0:03:39.9]}
41... h5 {[%clk 0:00:33.4]} 42. Bf7 {[%clk 0:03:38.6]} 42... g5 {[%clk
0:00:28.7]} 43. Bxh5 {[%clk 0:03:37.1]} 43... gxf4 {[%clk 0:00:24.8]} 44. gxf4
{[%clk 0:03:37]} 44... a4 {[%clk 0:00:21.6]} 45. Bd1 {[%clk 0:03:35.6]} 45... a3
{[%clk 0:00:18.6]} 46. g4 {[%clk 0:03:33.4]} 46... Kd6 {[%clk 0:00:16.2]} 47.
Kd4 {[%clk 0:03:31.6]} 47... Ke7 {[%clk 0:00:14.3]} 48. g5 {[%clk 0:03:31.5]}
48... Kf8 {[%clk 0:00:11.4]} 49. Bb3 {[%clk 0:03:31.4]} 49... Ke7 {[%clk
0:00:07.7]} 50. f5 {[%clk 0:03:31.3]} 50... Kf8 {[%clk 0:00:06]} 51. Ke5 {[%clk
0:03:31.2]} 51... Ke7 {[%clk 0:00:04.2]} 52. g6 {[%clk 0:03:31.1]} 52... Kf8
{[%clk 0:00:02.6]} 53. Kf6 {[%clk 0:03:31]} 53... Ke8 {[%clk 0:00:00.7]} 54. g7
{[%clk 0:03:29.6]} 1-0

[Event "Live Chess"]
[Site "Chess.com"]
[Date "2023.05.21"]
[Round "-"]
[White "Ian-Morley"]
[Black "BostonStrangler"]
[Result "0-1"]
[WhiteElo "1069"]
[BlackElo "2062"]
[TimeControl "300"]
[EndTime "0:20:00 PDT"]
[Termination "BostonStrangler won by resignation"]

1. e4 {[%clk 0:04:43.2]} 1... c5 {[%clk 0:04:58.7]} 2. Nf3 {[%clk 0:04:40.5]}
2... g6 {[%clk 0:04:58.3]} 3. Bb5 {[%clk 0:04:36.7]} 3... Bg7 {[%clk 0:04:53]}
4. O-O {[%clk 0:04:35.6]} 4... a6 {[%clk 0:04:51.4]} 5. Bc4 {[%clk 0:04:33.3]}
5... b5 {[%clk 0:04:50.1]} 6. Bd3 {[%clk 0:04:31.3]} 6... e6 {[%clk 0:04:48]} 7.
c4 {[%clk 0:04:29.8]} 7... b4 {[%clk 0:04:43.6]} 8. b3 {[%clk 0:04:28.6]} 8...
Bxa1 {[%clk 0:04:41.2]} 9. Re1 {[%clk 0:04:23]} 9... Bg7 {[%clk 0:04:36.9]} 10.
e5 {[%clk 0:04:20.7]} 10... Nc6 {[%clk 0:04:35.8]} 11. Be4 {[%clk 0:04:18.4]}
11... Nge7 {[%clk 0:04:34.2]} 12. a3 {[%clk 0:04:15.8]} 12... a5 {[%clk
0:04:32.6]} 13. axb4 {[%clk 0:04:14.9]} 13... axb4 {[%clk 0:04:32.5]} 14. Bb2
{[%clk 0:04:12.2]} 14... Bb7 {[%clk 0:04:30.7]} 15. d3 {[%clk 0:04:11.3]} 15...
O-O {[%clk 0:04:29.2]} 16. Nbd2 {[%clk 0:04:10.7]} 16... Ra2 {[%clk 0:04:22.8]}
17. Qc2 {[%clk 0:04:07.4]} 17... Qa8 {[%clk 0:04:19.1]} 18. Bxc6 {[%clk
0:04:05.4]} 18... Bxc6 {[%clk 0:04:15.7]} 19. d4 {[%clk 0:04:02.7]} 19... cxd4
{[%clk 0:04:06.9]} 20. Nxd4 {[%clk 0:03:55.3]} 20... Bxg2 {[%clk 0:04:00.4]} 21.
Ra1 {[%clk 0:03:48.7]} 21... Rxa1+ {[%clk 0:03:54.2]} 22. Bxa1 {[%clk
0:03:47.8]} 22... Qxa1+ {[%clk 0:03:52.5]} 23. Kxg2 {[%clk 0:03:47.1]} 23...
Qxd4 {[%clk 0:03:51.6]} 24. Nf3 {[%clk 0:03:44.3]} 24... Qg4+ {[%clk 0:03:49.9]}
25. Kf1 {[%clk 0:03:42.7]} 25... Qxf3 {[%clk 0:03:49.4]} 0-1

[Event "Live Chess"]
[Site "Chess.com"]
[Date "2023.05.21"]
[Round "-"]
[White "ChessClubLive"]
[Black "nigelst"]
[Result "0-1"]
[WhiteElo "1729"]
[BlackElo "1709"]
[TimeControl "300"]
[EndTime "0:20:04 PDT"]
[Termination "nigelst won by resignation"]

1. e4 {[%clk 0:04:58.1]} 1... c6 {[%clk 0:04:58.8]} 2. f4 {[%clk 0:04:56.7]}
2... d5 {[%clk 0:04:56.6]} 3. exd5 {[%clk 0:04:55.2]} 3... cxd5 {[%clk
0:04:53.9]} 4. Nf3 {[%clk 0:04:54.8]} 4... Nf6 {[%clk 0:04:51.8]} 5. Bb5+ {[%clk
0:04:53.8]} 5... Bd7 {[%clk 0:04:50]} 6. Bxd7+ {[%clk 0:04:52.4]} 6... Nbxd7
{[%clk 0:04:46.9]} 7. O-O {[%clk 0:04:52]} 7... e6 {[%clk 0:04:46]} 8. Nc3
{[%clk 0:04:50.2]} 8... Bc5+ {[%clk 0:04:41.4]} 9. d4 {[%clk 0:04:48.3]} 9...
Bb6 {[%clk 0:04:40]} 10. a4 {[%clk 0:04:45.9]} 10... a6 {[%clk 0:04:37.8]} 11.
a5 {[%clk 0:04:44.9]} 11... Ba7 {[%clk 0:04:36.6]} 12. h3 {[%clk 0:04:41.8]}
12... O-O {[%clk 0:04:35.1]} 13. Be3 {[%clk 0:04:40.8]} 13... Rc8 {[%clk
0:04:33.3]} 14. g4 {[%clk 0:04:31.7]} 14... Qc7 {[%clk 0:04:28.2]} 15. g5 {[%clk
0:04:22]} 15... Ne4 {[%clk 0:04:26.6]} 16. Ne5 {[%clk 0:03:26.1]} 16... Nxe5
{[%clk 0:04:21.8]} 17. fxe5 {[%clk 0:03:17.7]} 17... Nxc3 {[%clk 0:04:19.6]} 18.
bxc3 {[%clk 0:03:14.1]} 18... Qxc3 {[%clk 0:04:17.7]} 19. Rf3 {[%clk 0:02:54.3]}
19... Qxc2 {[%clk 0:04:11.9]} 20. Qf1 {[%clk 0:02:47.7]} 20... Rc4 {[%clk
0:03:48.5]} 21. Rc1 {[%clk 0:02:44.8]} 21... Qa4 {[%clk 0:03:45.4]} 22. Ra1
{[%clk 0:02:28]} 22... Qc6 {[%clk 0:03:39.4]} 23. h4 {[%clk 0:02:09]} 23... Bxd4
{[%clk 0:03:36.9]} 24. Bxd4 {[%clk 0:02:00.9]} 24... Rxd4 {[%clk 0:03:34.4]} 25.
h5 {[%clk 0:01:55]} 25... Rg4+ {[%clk 0:03:21.7]} 0-1

[Event "Live Chess"]
[Site "Chess.com"]
[Date "2023.05.21"]
[Round "-"]
[White "MaximKris"]
[Black "chessfiction"]
[Result "0-1"]
[WhiteElo "1834"]
[BlackElo "2351"]
[TimeControl "300"]
[EndTime "0:20:38 PDT"]
[Termination "chessfiction won by checkmate"]

1. e4 {[%clk 0:04:44.1]} 1... d5 {[%clk 0:04:57.7]} 2. exd5 {[%clk 0:04:42.5]}
2... c6 {[%clk 0:04:57.3]} 3. Nc3 {[%clk 0:04:40.6]} 3... Nf6 {[%clk 0:04:56]}
4. d4 {[%clk 0:04:40.5]} 4... cxd5 {[%clk 0:04:54.6]} 5. Nf3 {[%clk 0:04:39.8]}
5... Nc6 {[%clk 0:04:54.4]} 6. Bb5 {[%clk 0:04:39.3]} 6... Bg4 {[%clk
0:04:53.2]} 7. O-O {[%clk 0:04:38.8]} 7... Qb6 {[%clk 0:04:45.7]} 8. Bxc6+
{[%clk 0:04:34.9]} 8... bxc6 {[%clk 0:04:42.8]} 9. Na4 {[%clk 0:04:33.4]} 9...
Qc7 {[%clk 0:04:39.1]} 10. Nc5 {[%clk 0:04:31.7]} 10... e6 {[%clk 0:04:34.6]}
11. h3 {[%clk 0:04:20.1]} 11... h5 {[%clk 0:04:28.5]} 12. Bg5 {[%clk 0:04:10.3]}
12... Ne4 {[%clk 0:04:24.7]} 13. Re1 {[%clk 0:04:03.5]} 13... Bxf3 {[%clk
0:03:42.8]} 14. Qxf3 {[%clk 0:04:00.2]} 14... Nxg5 {[%clk 0:03:41.6]} 15. Qd3
{[%clk 0:03:54.8]} 15... Bxc5 {[%clk 0:03:38.6]} 16. dxc5 {[%clk 0:03:53.2]}
16... Ne4 {[%clk 0:03:36]} 17. b4 {[%clk 0:03:50.5]} 17... O-O {[%clk 0:03:33]}
18. a4 {[%clk 0:03:47.2]} 18... Qf4 {[%clk 0:03:31.8]} 19. Rf1 {[%clk
0:03:44.4]} 19... f5 {[%clk 0:03:30.7]} 20. b5 {[%clk 0:03:42.3]} 20... Nxc5
{[%clk 0:03:25.9]} 21. Qc3 {[%clk 0:03:41.4]} 21... Ne4 {[%clk 0:03:23.6]} 22.
Qxc6 {[%clk 0:03:39.8]} 22... Qd6 {[%clk 0:03:19.6]} 23. Qxd6 {[%clk 0:03:37.3]}
23... Nxd6 {[%clk 0:03:19.5]} 24. Rfb1 {[%clk 0:03:35.7]} 24... Rac8 {[%clk
0:03:18]} 25. a5 {[%clk 0:03:35.6]} 25... Rxc2 {[%clk 0:03:15.7]} 26. b6 {[%clk
0:03:35.5]} 26... axb6 {[%clk 0:03:14.6]} 27. axb6 {[%clk 0:03:35.4]} 27... Rb8
{[%clk 0:03:13.7]} 28. Ra7 {[%clk 0:03:33.1]} 28... d4 {[%clk 0:03:08.6]} 29. b7
{[%clk 0:03:32.2]} 29... Rxb7 {[%clk 0:03:04]} 30. Raxb7 {[%clk 0:03:29.2]}
30... Nxb7 {[%clk 0:03:03.9]} 31. Rxb7 {[%clk 0:03:27.8]} 31... e5 {[%clk
0:03:01]} 32. Kf1 {[%clk 0:03:26.2]} 32... d3 {[%clk 0:03:00]} 33. Ke1 {[%clk
0:03:25.3]} 33... e4 {[%clk 0:02:57.7]} 34. Rb5 {[%clk 0:03:21.2]} 34... f4
{[%clk 0:02:53.9]} 35. Rb4 {[%clk 0:03:19.7]} 35... e3 {[%clk 0:02:52.4]} 36.
Rxf4 {[%clk 0:03:15.4]} 36... Rc1# {[%clk 0:02:51.6]} 0-1

[Event "Live Chess"]
[Site "Chess.com"]
[Date "2023.05.21"]
[Round "-"]
[White "rmethornhill"]
[Black "WilliamofOrange16th"]
[Result "0-1"]
[WhiteElo "1156"]
[BlackElo "1817"]
[TimeControl "300"]
[EndTime "0:20:42 PDT"]
[Termination "WilliamofOrange16th won by resignation"]

1. d4 {[%clk 0:04:56.8]} 1... d5 {[%clk 0:04:58.1]} 2. c4 {[%clk 0:04:55.7]}
2... c6 {[%clk 0:04:57.3]} 3. Nf3 {[%clk 0:04:53.8]} 3... Nf6 {[%clk 0:04:56.1]}
4. Nc3 {[%clk 0:04:51]} 4... a6 {[%clk 0:04:53.6]} 5. Bg5 {[%clk 0:04:49.8]}
5... dxc4 {[%clk 0:04:48.7]} 6. e3 {[%clk 0:04:48.4]} 6... b5 {[%clk 0:04:47.3]}
7. Bxf6 {[%clk 0:04:31.5]} 7... exf6 {[%clk 0:04:46.2]} 8. a4 {[%clk 0:04:30.6]}
8... Bb7 {[%clk 0:04:39.7]} 9. axb5 {[%clk 0:04:23.4]} 9... cxb5 {[%clk
0:04:39.6]} 10. Be2 {[%clk 0:04:17.6]} 10... Bb4 {[%clk 0:04:37.2]} 11. O-O
{[%clk 0:04:15.5]} 11... O-O {[%clk 0:04:36.3]} 12. Qc2 {[%clk 0:03:53.5]} 12...
Nc6 {[%clk 0:04:34.3]} 13. Rfd1 {[%clk 0:03:50.2]} 13... Ne7 {[%clk 0:04:32.9]}
14. d5 {[%clk 0:03:45.2]} 14... Bxc3 {[%clk 0:04:19.2]} 15. Qxc3 {[%clk
0:03:43.9]} 15... Nxd5 {[%clk 0:04:16.3]} 16. Qc2 {[%clk 0:03:37.1]} 16... Qe7
{[%clk 0:04:08.6]} 17. Nd4 {[%clk 0:03:22.8]} 17... g6 {[%clk 0:04:02.4]} 18.
Qd2 {[%clk 0:03:08.2]} 18... Rfd8 {[%clk 0:03:30.5]} 19. Qa5 {[%clk 0:03:06]}
19... Qc7 {[%clk 0:03:24.3]} 20. Qxc7 {[%clk 0:02:53]} 20... Nxc7 {[%clk
0:03:24.2]} 21. Rac1 {[%clk 0:02:48]} 21... Bd5 {[%clk 0:03:23]} 22. b3 {[%clk
0:02:44.8]} 22... Ne6 {[%clk 0:03:19.7]} 23. bxc4 {[%clk 0:02:43.2]} 23... bxc4
{[%clk 0:03:18.4]} 24. Nf3 {[%clk 0:02:34]} 24... a5 {[%clk 0:03:04.9]} 25. Bxc4
{[%clk 0:02:23]} 25... Bxc4 {[%clk 0:03:03.7]} 26. Rxd8+ {[%clk 0:02:21.4]}
26... Rxd8 {[%clk 0:03:03.6]} 27. Rxc4 {[%clk 0:02:20.7]} 27... Rd1+ {[%clk
0:03:02.7]} 0-1